Workbook

Sheet Raw "Dummy" TPD
A1: Example of Dummy TPD for the determination of sensitivity factors for acetaldehyde
A3: Experiment:
A4: 1. Leak 3E-8 Torr acetaldehyde
A5: 2. Run TPD program, following 29, 43 and 44 amu (there is no need to clean, cool, or heat the sample, the T value is not needed)
A6: 3. Increase acetaldehyde pressure to 7E-8 Torr after 10 s
A7: 4. Increase acetaldehyde pressure to 2E-7 Torr after 20 s
A8: 5. Stop after 30 s
A10: 0.1 | B10: Delta t/s | C10: (time between points)
C12: Intensities
A13: time/s | B13: T/K | C13: 29amu | D13: 43amu | E13: 44amu
A14: 0 | B14: 100.9 | C14: 0.075 | D14: 0.04 | E14: 0.052
A15: =A14+A$10 -> 0.1 | B15: 100.9 | C15: 0.075 | D15: 0.04 | E15: 0.052
A16: =A15+A$10 -> 0.2 | B16: 100.9 | C16: 0.075 | D16: 0.04 | E16: 0.052
A17: 0.3 | B17: 100.9 | C17: 0.075 | D17: 0.04 | E17: 0.052
A18: 0.4 | B18: 100.9 | C18: 0.075 | D18: 0.04 | E18: 0.052
A19: 0.5 | B19: 100.9 | C19: 0.075 | D19: 0.04 | E19: 0.052
A20: 0.6 | B20: 100.9 | C20: 0.075 | D20: 0.04 | E20: 0.052
A21: 0.7 | B21: 100.9 | C21: 0.075 | D21: 0.04 | E21: 0.052
A22: 0.8 | B22: 100.9 | C22: 0.075 | D22: 0.04 | E22: 0.052
A23: 0.9 | B23: 100.9 | C23: 0.075 | D23: 0.04 | E23: 0.052
A24: 1 | B24: 100.9 | C24: 0.075 | D24: 0.04 | E24: 0.052
A25: 1.1 | B25: 100.9 | C25: 0.075 | D25: 0.04 | E25: 0.052
A26: 1.2 | B26: 100.9 | C26: 0.075 | D26: 0.04 | E26: 0.052
A27: 1.3 | B27: 100.9 | C27: 0.075 | D27: 0.04 | E27: 0.052
A28: 1.4 | B28: 100.9 | C28: 0.075 | D28: 0.04 | E28: 0.052
A29: 1.5 | B29: 100.9 | C29: 0.075 | D29: 0.04 | E29: 0.052
A30: 1.6 | B30: 100.9 | C30: 0.075 | D30: 0.04 | E30: 0.052
A31: 1.7 | B31: 100.9 | C31: 0.075 | D31: 0.04 | E31: 0.052
A32: 1.8 | B32: 100.9 | C32: 0.075 | D32: 0.04 | E32: 0.052
A33: 1.9 | B33: 100.9 | C33: 0.075 | D33: 0.04 | E33: 0.052
A34: 2 | B34: 100.9 | C34: 0.075 | D34: 0.04 | E34: 0.052
A35: 2.1 | B35: 100.9 | C35: 0.075 | D35: 0.04 | E35: 0.052
A36: 2.2 | B36: 100.9 | C36: 0.075 | D36: 0.04 | E36: 0.052
A37: 2.3 | B37: 100.9 | C37: 0.075 | D37: 0.04 | E37: 0.052
A38: 2.4 | B38: 100.9 | C38: 0.075 | D38: 0.04 | E38: 0.052
A39: 2.5 | B39: 100.9 | C39: 0.075 | D39: 0.04 | E39: 0.052
A40: 2.6 | B40: 100.9 | C40: 0.075 | D40: 0.04 | E40: 0.052
A41: 2.7 | B41: 100.9 | C41: 0.075 | D41: 0.04 | E41: 0.052
A42: 2.8 | B42: 100.9 | C42: 0.075 | D42: 0.04 | E42: 0.052
A43: 2.9 | B43: 100.9 | C43: 0.075 | D43: 0.04 | E43: 0.052
A44: 3 | B44: 100.9 | C44: 0.075 | D44: 0.04 | E44: 0.052
A45: 3.1 | B45: 100.9 | C45: 0.075 | D45: 0.04 | E45: 0.052
A46: 3.2 | B46: 100.9 | C46: 0.075 | D46: 0.04 | E46: 0.052
A47: 3.3 | B47: 100.9 | C47: 0.075 | D47: 0.04 | E47: 0.052
A48: 3.4 | B48: 100.9 | C48: 0.075 | D48: 0.04 | E48: 0.052
A49: 3.5 | B49: 100.9 | C49: 0.075 | D49: 0.04 | E49: 0.052
A50: 3.6 | B50: 100.9 | C50: 0.075 | D50: 0.04 | E50: 0.052
A51: 3.7 | B51: 100.9 | C51: 0.075 | D51: 0.04 | E51: 0.052
A52: 3.8 | B52: 100.9 | C52: 0.075 | D52: 0.04 | E52: 0.052
A53: 3.9 | B53: 100.9 | C53: 0.075 | D53: 0.04 | E53: 0.052
A54: 4 | B54: 100.9 | C54: 0.075 | D54: 0.04 | E54: 0.052
A55: 4.1 | B55: 100.9 | C55: 0.075 | D55: 0.04 | E55: 0.052
A56: 4.2 | B56: 100.9 | C56: 0.075 | D56: 0.04 | E56: 0.052
A57: 4.3 | B57: 100.9 | C57: 0.075 | D57: 0.04 | E57: 0.052
A58: 4.4 | B58: 100.9 | C58: 0.075 | D58: 0.04 | E58: 0.052
A59: 4.5 | B59: 100.9 | C59: 0.075 | D59: 0.04 | E59: 0.052
A60: 4.6 | B60: 100.9 | C60: 0.075 | D60: 0.04 | E60: 0.052
A61: 4.7 | B61: 100.9 | C61: 0.075 | D61: 0.04 | E61: 0.052
A62: 4.8 | B62: 100.9 | C62: 0.075 | D62: 0.04 | E62: 0.052
A63: 4.9 | B63: 100.9 | C63: 0.075 | D63: 0.04 | E63: 0.052
A64: 5 | B64: 100.9 | C64: 0.075 | D64: 0.04 | E64: 0.052
A65: 5.1 | B65: 100.9 | C65: 0.075 | D65: 0.04 | E65: 0.052
A66: 5.2 | B66: 100.9 | C66: 0.075 | D66: 0.04 | E66: 0.052
A67: 5.3 | B67: 100.9 | C67: 0.075 | D67: 0.04 | E67: 0.052
A68: 5.4 | B68: 100.9 | C68: 0.075 | D68: 0.04 | E68: 0.052
A69: 5.5 | B69: 100.9 | C69: 0.075 | D69: 0.04 | E69: 0.052
A70: 5.6 | B70: 100.9 | C70: 0.075 | D70: 0.04 | E70: 0.052
A71: 5.7 | B71: 100.9 | C71: 0.075 | D71: 0.04 | E71: 0.052
A72: 5.8 | B72: 100.9 | C72: 0.075 | D72: 0.04 | E72: 0.052
A73: 5.9 | B73: 100.9 | C73: 0.075 | D73: 0.04 | E73: 0.052
A74: =A73+A$10 -> 6 | B74: 100.9 | C74: 0.075 | D74: 0.04 | E74: 0.052
A75: 6.1 | B75: 100.9 | C75: 0.075 | D75: 0.04 | E75: 0.052
A76: 6.2 | B76: 100.9 | C76: 0.075 | D76: 0.04 | E76: 0.052
A77: 6.3 | B77: 100.9 | C77: 0.075 | D77: 0.04 | E77: 0.052
A78: 6.4 | B78: 100.9 | C78: 0.075 | D78: 0.04 | E78: 0.052
A79: 6.5 | B79: 100.9 | C79: 0.075 | D79: 0.04 | E79: 0.052
A80: 6.6 | B80: 100.9 | C80: 0.075 | D80: 0.04 | E80: 0.052
A81: 6.7 | B81: 100.9 | C81: 0.075 | D81: 0.04 | E81: 0.052
A82: 6.8 | B82: 100.9 | C82: 0.075 | D82: 0.04 | E82: 0.052
A83: 6.9 | B83: 100.9 | C83: 0.075 | D83: 0.04 | E83: 0.052
A84: 7 | B84: 100.9 | C84: 0.075 | D84: 0.04 | E84: 0.052
A85: 7.1 | B85: 100.9 | C85: 0.075 | D85: 0.04 | E85: 0.052
A86: 7.2 | B86: 100.9 | C86: 0.075 | D86: 0.04 | E86: 0.052
A87: 7.3 | B87: 100.9 | C87: 0.075 | D87: 0.04 | E87: 0.052
A88: 7.4 | B88: 100.9 | C88: 0.075 | D88: 0.04 | E88: 0.052
A89: 7.5 | B89: 100.9 | C89: 0.075 | D89: 0.04 | E89: 0.052
A90: 7.6 | B90: 100.9 | C90: 0.075 | D90: 0.04 | E90: 0.052
A91: 7.7 | B91: 100.9 | C91: 0.075 | D91: 0.04 | E91: 0.052
A92: 7.8 | B92: 100.9 | C92: 0.075 | D92: 0.04 | E92: 0.052
A93: 7.9 | B93: 100.9 | C93: 0.075 | D93: 0.04 | E93: 0.052
A94: 8 | B94: 100.9 | C94: 0.075 | D94: 0.04 | E94: 0.052
A95: 8.1 | B95: 100.9 | C95: 0.075 | D95: 0.04 | E95: 0.052
A96: 8.2 | B96: 100.9 | C96: 0.075 | D96: 0.04 | E96: 0.052
A97: 8.3 | B97: 100.9 | C97: 0.075 | D97: 0.04 | E97: 0.052
A98: 8.4 | B98: 100.9 | C98: 0.075 | D98: 0.04 | E98: 0.052
A99: 8.5 | B99: 100.9 | C99: 0.075 | D99: 0.04 | E99: 0.052
A100: 8.6 | B100: 100.9 | C100: 0.075 | D100: 0.04 | E100: 0.052
A101: 8.7 | B101: 100.9 | C101: 0.075 | D101: 0.04 | E101: 0.052
A102: 8.8 | B102: 100.9 | C102: 0.075 | D102: 0.04 | E102: 0.052
A103: 8.9 | B103: 100.9 | C103: 0.075 | D103: 0.04 | E103: 0.052
A104: 9 | B104: 100.9 | C104: 0.075 | D104: 0.04 | E104: 0.052
A105: 9.1 | B105: 100.9 | C105: 0.075 | D105: 0.04 | E105: 0.052
A106: 9.2 | B106: 100.9 | C106: 0.075 | D106: 0.04 | E106: 0.052
A107: 9.3 | B107: 100.9 | C107: 0.075 | D107: 0.04 | E107: 0.052
A108: 9.4 | B108: 100.9 | C108: 0.075 | D108: 0.04 | E108: 0.052
A109: 9.5 | B109: 100.9 | C109: 0.075 | D109: 0.04 | E109: 0.052
A110: 9.6 | B110: 100.9 | C110: 0.075 | D110: 0.04 | E110: 0.052
A111: 9.7 | B111: 100.9 | C111: 0.075 | D111: 0.04 | E111: 0.052
A112: 9.8 | B112: 100.9 | C112: 0.075 | D112: 0.04 | E112: 0.052
A113: 9.9 | B113: 100.9 | C113: 0.075 | D113: 0.04 | E113: 0.052
A114: 10 | B114: 100.9 | C114: 0.075 | D114: 0.04 | E114: 0.052
A115: 10.1 | B115: 100.9 | C115: 0.215 | D115: 0.088 | E115: 0.148
A116: 10.2 | B116: 100.9 | C116: 0.215 | D116: 0.088 | E116: 0.148
A117: 10.3 | B117: 100.9 | C117: 0.215 | D117: 0.088 | E117: 0.148
A118: 10.4 | B118: 100.9 | C118: 0.215 | D118: 0.088 | E118: 0.148
A119: 10.5 | B119: 100.9 | C119: 0.215 | D119: 0.088 | E119: 0.148
A120: 10.6 | B120: 100.9 | C120: 0.215 | D120: 0.088 | E120: 0.148
A121: 10.7 | B121: 100.9 | C121: 0.215 | D121: 0.088 | E121: 0.148
A122: 10.8 | B122: 100.9 | C122: 0.215 | D122: 0.088 | E122: 0.148
A123: 10.9 | B123: 100.9 | C123: 0.215 | D123: 0.088 | E123: 0.148
A124: 11 | B124: 100.9 | C124: 0.215 | D124: 0.088 | E124: 0.148
A125: 11.1 | B125: 100.9 | C125: 0.215 | D125: 0.088 | E125: 0.148
A126: 11.2 | B126: 100.9 | C126: 0.215 | D126: 0.088 | E126: 0.148
A127: 11.3 | B127: 100.9 | C127: 0.215 | D127: 0.088 | E127: 0.148
A128: 11.4 | B128: 100.9 | C128: 0.215 | D128: 0.088 | E128: 0.148
A129: 11.5 | B129: 100.9 | C129: 0.215 | D129: 0.088 | E129: 0.148
A130: =A129+A$10 -> 11.6 | B130: 100.9 | C130: 0.215 | D130: 0.088 | E130: 0.148
A131: 11.7 | B131: 100.9 | C131: 0.215 | D131: 0.088 | E131: 0.148
A132: 11.8 | B132: 100.9 | C132: 0.215 | D132: 0.088 | E132: 0.148
A133: 11.9 | B133: 100.9 | C133: 0.215 | D133: 0.088 | E133: 0.148
A134: 12 | B134: 100.9 | C134: 0.215 | D134: 0.088 | E134: 0.148
A135: 12.1 | B135: 100.9 | C135: 0.215 | D135: 0.088 | E135: 0.148
A136: 12.2 | B136: 100.9 | C136: 0.215 | D136: 0.088 | E136: 0.148
A137: 12.3 | B137: 100.9 | C137: 0.215 | D137: 0.088 | E137: 0.148
A138: 12.4 | B138: 100.9 | C138: 0.215 | D138: 0.088 | E138: 0.148
A139: 12.5 | B139: 100.9 | C139: 0.215 | D139: 0.088 | E139: 0.148
A140: 12.6 | B140: 100.9 | C140: 0.215 | D140: 0.088 | E140: 0.148
A141: 12.7 | B141: 100.9 | C141: 0.215 | D141: 0.088 | E141: 0.148
A142: 12.8 | B142: 100.9 | C142: 0.215 | D142: 0.088 | E142: 0.148
A143: 12.9 | B143: 100.9 | C143: 0.215 | D143: 0.088 | E143: 0.148
A144: 13 | B144: 100.9 | C144: 0.215 | D144: 0.088 | E144: 0.148
A145: 13.1 | B145: 100.9 | C145: 0.215 | D145: 0.088 | E145: 0.148
A146: 13.2 | B146: 100.9 | C146: 0.215 | D146: 0.088 | E146: 0.148
A147: 13.3 | B147: 100.9 | C147: 0.215 | D147: 0.088 | E147: 0.148
A148: 13.4 | B148: 100.9 | C148: 0.215 | D148: 0.088 | E148: 0.148
A149: 13.5 | B149: 100.9 | C149: 0.215 | D149: 0.088 | E149: 0.148
A150: 13.6 | B150: 100.9 | C150: 0.215 | D150: 0.088 | E150: 0.148
A151: 13.7 | B151: 100.9 | C151: 0.215 | D151: 0.088 | E151: 0.148
A152: 13.8 | B152: 100.9 | C152: 0.215 | D152: 0.088 | E152: 0.148
A153: 13.9 | B153: 100.9 | C153: 0.215 | D153: 0.088 | E153: 0.148
A154: 14 | B154: 100.9 | C154: 0.215 | D154: 0.088 | E154: 0.148
A155: 14.1 | B155: 100.9 | C155: 0.215 | D155: 0.088 | E155: 0.148
A156: 14.2 | B156: 100.9 | C156: 0.215 | D156: 0.088 | E156: 0.148
A157: 14.3 | B157: 100.9 | C157: 0.215 | D157: 0.088 | E157: 0.148
A158: 14.4 | B158: 100.9 | C158: 0.215 | D158: 0.088 | E158: 0.148
A159: 14.5 | B159: 100.9 | C159: 0.215 | D159: 0.088 | E159: 0.148
A160: 14.6 | B160: 100.9 | C160: 0.215 | D160: 0.088 | E160: 0.148
A161: 14.7 | B161: 100.9 | C161: 0.215 | D161: 0.088 | E161: 0.148
A162: 14.8 | B162: 100.9 | C162: 0.215 | D162: 0.088 | E162: 0.148
A163: 14.9 | B163: 100.9 | C163: 0.215 | D163: 0.088 | E163: 0.148
A164: 15 | B164: 100.9 | C164: 0.215 | D164: 0.088 | E164: 0.148
A165: 15.1 | B165: 100.9 | C165: 0.215 | D165: 0.088 | E165: 0.148
A166: 15.2 | B166: 100.9 | C166: 0.215 | D166: 0.088 | E166: 0.148
A167: 15.3 | B167: 100.9 | C167: 0.215 | D167: 0.088 | E167: 0.148
A168: 15.4 | B168: 100.9 | C168: 0.215 | D168: 0.088 | E168: 0.148
A169: 15.5 | B169: 100.9 | C169: 0.215 | D169: 0.088 | E169: 0.148
A170: 15.6 | B170: 100.9 | C170: 0.215 | D170: 0.088 | E170: 0.148
A171: 15.7 | B171: 100.9 | C171: 0.215 | D171: 0.088 | E171: 0.148
A172: 15.8 | B172: 100.9 | C172: 0.215 | D172: 0.088 | E172: 0.148
A173: 15.9 | B173: 100.9 | C173: 0.215 | D173: 0.088 | E173: 0.148
A174: 16 | B174: 100.9 | C174: 0.215 | D174: 0.088 | E174: 0.148
A175: 16.1 | B175: 100.9 | C175: 0.215 | D175: 0.088 | E175: 0.148
A176: 16.2 | B176: 100.9 | C176: 0.215 | D176: 0.088 | E176: 0.148
A177: 16.3 | B177: 100.9 | C177: 0.215 | D177: 0.088 | E177: 0.148
A178: 16.4 | B178: 100.9 | C178: 0.215 | D178: 0.088 | E178: 0.148
A179: 16.5 | B179: 100.9 | C179: 0.215 | D179: 0.088 | E179: 0.148
A180: 16.6 | B180: 100.9 | C180: 0.215 | D180: 0.088 | E180: 0.148
A181: 16.7 | B181: 100.9 | C181: 0.215 | D181: 0.088 | E181: 0.148
A182: 16.8 | B182: 100.9 | C182: 0.215 | D182: 0.088 | E182: 0.148
A183: 16.9 | B183: 100.9 | C183: 0.215 | D183: 0.088 | E183: 0.148
A184: 17 | B184: 100.9 | C184: 0.215 | D184: 0.088 | E184: 0.148
A185: 17.1 | B185: 100.9 | C185: 0.215 | D185: 0.088 | E185: 0.148
A186: 17.2 | B186: 100.9 | C186: 0.215 | D186: 0.088 | E186: 0.148
A187: 17.3 | B187: 100.9 | C187: 0.215 | D187: 0.088 | E187: 0.148
A188: 17.4 | B188: 100.9 | C188: 0.215 | D188: 0.088 | E188: 0.148
A189: 17.5 | B189: 100.9 | C189: 0.215 | D189: 0.088 | E189: 0.148
A190: 17.6 | B190: 100.9 | C190: 0.215 | D190: 0.088 | E190: 0.148
A191: 17.7 | B191: 100.9 | C191: 0.215 | D191: 0.088 | E191: 0.148
A192: 17.8 | B192: 100.9 | C192: 0.215 | D192: 0.088 | E192: 0.148
A193: 17.9 | B193: 100.9 | C193: 0.215 | D193: 0.088 | E193: 0.148
A194: =A193+A$10 -> 18 | B194: 100.9 | C194: 0.215 | D194: 0.088 | E194: 0.148
A195: 18.1 | B195: 100.9 | C195: 0.215 | D195: 0.088 | E195: 0.148
A196: 18.2 | B196: 100.9 | C196: 0.215 | D196: 0.088 | E196: 0.148
A197: 18.3 | B197: 100.9 | C197: 0.215 | D197: 0.088 | E197: 0.148
A198: 18.4 | B198: 100.9 | C198: 0.215 | D198: 0.088 | E198: 0.148
A199: 18.5 | B199: 100.9 | C199: 0.215 | D199: 0.088 | E199: 0.148
A200: 18.6 | B200: 100.9 | C200: 0.215 | D200: 0.088 | E200: 0.148
A201: 18.7 | B201: 100.9 | C201: 0.215 | D201: 0.088 | E201: 0.148
A202: 18.8 | B202: 100.9 | C202: 0.215 | D202: 0.088 | E202: 0.148
A203: 18.9 | B203: 100.9 | C203: 0.215 | D203: 0.088 | E203: 0.148
... 111 more rows

Sheet Sensitivities
A1: Acetaldehyde | H1: Linear Fits
A2: MS Calibration
H3: 29 amu
H4: SUMMARY OUTPUT
H6: Regression Statistics
H7: Multiple R | I7: 0.9995270045
H8: R Square | I8: 0.9990542327
H9: Adjusted R Square | I9: 0.9981084654
H10: Standard Error | I10: 0.01561671721
H11: Observations | I11: 3
H13: ANOVA
I14: df | J14: SS | K14: MS | L14: F | M14: Significance F
H15: Regression | I15: 1 | J15: 0.2576227848 | K15: 0.2576227848 | L15: 1056.342561 | M15: 0.01958126508
H16: Residual | I16: 1 | J16: 0.0002438818565 | K16: 0.0002438818565
H17: Total | I17: 2 | J17: 0.2578666667
I19: Coefficients | J19: Standard Error | K19: t Stat | L19: P-value | M19: Lower 95% | N19: Upper 95% | O19: Lower 95.0% | P19: Upper 95.0%
H20: Intercept | I20: -0.05546413502 | J20: 0.01535088133 | K20: -3.613091251 | L20: 0.1718951289 | M20: -0.2505147404 | N20: 0.1395864704 | O20: -0.2505147404 | P20: 0.1395864704
H21: X Variable 1 | I21: 4037974.684 | J21: 124239.9313 | K21: 32.50142398 | L21: 0.01958126508 | M21: 2459363.443 | N21: 5616585.925 | O21: 2459363.443 | P21: 5616585.925
H27: 43 amu
H28: SUMMARY OUTPUT
H30: Regression Statistics
H31: Multiple R | I31: 0.9993839988
A32: Data | H32: R Square | I32: 0.9987683771
H33: Adjusted R Square | I33: 0.9975367542
A34: Pressure / Torr | B34: 29amu | C34: 43amu | D34: 44amu | H34: Standard Error | I34: 0.006246686886
A35: 3.00E-08 | B35: 0.075 | C35: 0.04 | D35: 0.052 | H35: Observations | I35: 3
A36: 7.00E-08 | B36: 0.215 | C36: 0.088 | D36: 0.148
A37: 2.00E-07 | B37: 0.755 | C37: 0.278 | D37: 0.48 | H37: ANOVA
I38: df | J38: SS | K38: MS | L38: F | M38: Significance F
H39: Regression | I39: 1 | J39: 0.03164364557 | K39: 0.03164364557 | L39: 810.9368512 | M39: 0.0223464317
A40: Calculated Sensitivity Factors | H40: Residual | I40: 1 | J40: 3.902109705e-05 | K40: 3.902109705e-05
A41: (From the slopes of the plots) | H41: Total | I41: 2 | J41: 0.03168266667
A43: amu | B43: 29 amu | C43: 43 amu | D43: 44 amu | I43: Coefficients | J43: Standard Error | K43: t Stat | L43: P-value | M43: Lower 95% | N43: Upper 95% | O43: Lower 95.0% | P43: Upper 95.0%
A44: S (V/Torr)= | B44: =I21 -> 4.04E+06 | C44: =I45 -> 1.42E+06 | D44: =I76 -> 2.53E+06 | H44: Intercept | I44: -0.006185654008 | J44: 0.006140352532 | K44: -1.007377667 | L44: 0.4976602566 | M44: -0.08420589618 | N44: 0.07183458816 | O44: -0.08420589618 | P44: 0.07183458816
A45: 1/S (Torr/V) | B45: =1/B44 -> 2.48E-07 | C45: =1/C44 -> 7.07E-07 | D45: =1/D44 -> 3.96E-07 | H45: X Variable 1 | I45: 1415189.873 | J45: 49695.97254 | K45: 28.47695298 | L45: 0.0223464317 | M45: 783745.377 | N45: 2046634.37 | O45: 783745.377 | P45: 2046634.37
H49: RESIDUAL OUTPUT
H51: Observation | I51: Predicted Y | J51: Residuals | K51: Standard Residuals
H52: 1 | I52: 0.03627004219 | J52: 0.003729957806 | K52: 0.8444407432
H53: 2 | I53: 0.09287763713 | J53: -0.004877637131 | K53: -1.104268664
H54: 3 | I54: 0.2768523207 | J54: 0.001147679325 | K54: 0.259827921
H58: 45 amu
H59: SUMMARY OUTPUT
H61: Regression Statistics
H62: Multiple R | I62: 0.9999330726
H63: R Square | I63: 0.9998661496
H64: Adjusted R Square | I64: 0.9997322993
H65: Standard Error | I65: 0.003674521697
H66: Observations | I66: 3
H68: ANOVA
I69: df | J69: SS | K69: MS | L69: F | M69: Significance F
H70: Regression | I70: 1 | J70: 0.1008611646 | K70: 0.1008611646 | L70: 7470.03 | M70: 0.00736545485
H71: Residual | I71: 1 | J71: 1.35021097e-05 | K71: 1.35021097e-05
H72: Total | I72: 2 | J72: 0.1008746667
I74: Coefficients | J74: Standard Error | K74: t Stat | L74: P-value | M74: Lower 95% | N74: Upper 95% | O74: Lower 95.0% | P74: Upper 95.0%
H75: Intercept | I75: -0.02599156118 | J75: 0.003611972077 | K75: -7.195947428 | L75: 0.08790621598 | M75: -0.07188582128 | N75: 0.01990269892 | O75: -0.07188582128 | P75: 0.01990269892
H76: X Variable 1 | I76: 2526582.278 | J76: 29232.92502 | K76: 86.4293353 | L76: 0.00736545485 | M76: 2155144.339 | N76: 2898020.218 | O76: 2155144.339 | P76: 2898020.218
H80: RESIDUAL OUTPUT
H82: Observation | I82: Predicted Y | J82: Residuals | K82: Standard Residuals
H83: 1 | I83: 0.04980590717 | J83: 0.002194092827 | K83: 0.8444407432
H84: 2 | I84: 0.1508691983 | J84: -0.002869198312 | K84: -1.104268664
H85: 3 | I85: 0.4793248945 | J85: 0.0006751054852 | K85: 0.259827921

Sheet Mass Spectrum
A30: Mass spectrum, acetaldehyde
A31: amu | B31: Raw | C31: Background | D31: Difference
A32: 1 | B32: 0.057631 | C32: 0.056166 | D32: =B32-C32 -> 0.001465
A33: 1.25 | B33: 0.243712 | C33: 0.118681 | D33: 0.125031
A34: 1.5 | B34: 0.242735 | C34: 0.117705 | D34: 0.12503
A35: 1.75 | B35: 0.238828 | C35: 0.122589 | D35: 0.116239
A36: 2 | B36: 0.208547 | C36: 0.099634 | D36: 0.108913
A37: 2.25 | B37: 0.199756 | C37: 0.079609 | D37: 0.120147
A38: 2.5 | B38: 0.016606 | C38: 0.010745 | D38: 0.005861
A39: 2.75 | B39: 0.014652 | C39: 0.020024 | D39: -0.005372
A40: 3 | B40: 0.015629 | C40: 0.016606 | D40: -0.000977
A41: 3.25 | B41: 0.011233 | C41: 0.016606 | D41: -0.005373
A42: 3.5 | B42: 0.008791 | C42: 0.010256 | D42: -0.001465
A43: 3.75 | B43: 0.003419 | C43: 0.020513 | D43: -0.017094
A44: 4 | B44: 0.010256 | C44: 0.013675 | D44: -0.003419
A45: 4.25 | B45: 0.013187 | C45: 0.010745 | D45: 0.002442
A46: 4.5 | B46: 0.01221 | C46: 0.014652 | D46: -0.002442
A47: 4.75 | B47: 0.00928 | C47: 0.007326 | D47: 0.001954
A48: 5 | B48: 0.008303 | C48: 0.01221 | D48: -0.003907
A49: 5.25 | B49: 0.006838 | C49: 0.013675 | D49: -0.006837
A50: 5.5 | B50: 0.001954 | C50: 0.007326 | D50: -0.005372
A51: 5.75 | B51: 0.011722 | C51: 0.011722 | D51: 0
A52: 6 | B52: 0.015629 | C52: 0.016606 | D52: -0.000977
A53: 6.25 | B53: 0.014652 | C53: 0.011233 | D53: 0.003419
A54: 6.5 | B54: 0.00928 | C54: 0.013675 | D54: -0.004395
A55: 6.75 | B55: 0.008791 | C55: 0.006838 | D55: 0.001953
A56: 7 | B56: 0.00928 | C56: 0.016117 | D56: -0.006837
A57: 7.25 | B57: 0.006838 | C57: 0.010256 | D57: -0.003418
A58: 7.5 | B58: 0.008303 | C58: 0.011233 | D58: -0.00293
A59: 7.75 | B59: 0.007326 | C59: 0.011233 | D59: -0.003907
A60: 8 | B60: 0.011722 | C60: 0.013675 | D60: -0.001953
A61: 8.25 | B61: 0.010256 | C61: 0.011722 | D61: -0.001466
A62: 8.5 | B62: 0.009768 | C62: 0.019536 | D62: -0.009768
A63: 8.75 | B63: 0.017582 | C63: 0.016117 | D63: 0.001465
A64: 9 | B64: 0.008303 | C64: 0.021001 | D64: =B64-C64 -> -0.012698
A65: 9.25 | B65: 0.01221 | C65: 0.013187 | D65: -0.000977
A66: 9.5 | B66: 0.016117 | C66: 0.012698 | D66: 0.003419
A67: 9.75 | B67: 0.007814 | C67: 0.007326 | D67: 0.000488
A68: 10 | B68: 0.011233 | C68: 0.016117 | D68: -0.004884
A69: 10.25 | B69: 0.01514 | C69: 0.020513 | D69: -0.005373
A70: 10.5 | B70: 0.012698 | C70: 0.008303 | D70: 0.004395
A71: 10.75 | B71: 0.004396 | C71: 0.016606 | D71: -0.01221
A72: 11 | B72: 0.00928 | C72: 0.01514 | D72: -0.00586
A73: 11.25 | B73: 0.006838 | C73: 0.011722 | D73: -0.004884
A74: 11.5 | B74: 0.019536 | C74: 0.022466 | D74: -0.00293
A75: 11.75 | B75: 0.043956 | C75: 0.017094 | D75: 0.026862
A76: 12 | B76: 0.052747 | C76: 0.026374 | D76: 0.026373
A77: 12.25 | B77: 0.047863 | C77: 0.026862 | D77: 0.021001
A78: 12.5 | B78: 0.01221 | C78: 0.00928 | D78: 0.00293
A79: 12.75 | B79: 0.047863 | C79: 0.008791 | D79: 0.039072
A80: 13 | B80: 0.047863 | C80: 0.016117 | D80: 0.031746
A81: 13.25 | B81: 0.064957 | C81: 0.006838 | D81: 0.058119
A82: 13.5 | B82: 0.019048 | C82: 0.014164 | D82: 0.004884
A83: 13.75 | B83: 0.104029 | C83: 0.021978 | D83: 0.082051
A84: 14 | B84: 0.140659 | C84: 0.01514 | D84: 0.125519
A85: 14.25 | B85: 0.129915 | C85: 0.014164 | D85: 0.115751
A86: 14.5 | B86: 0.034676 | C86: 0.016606 | D86: 0.01807
A87: 14.75 | B87: 0.230037 | C87: 0.012698 | D87: 0.217339
A88: 15 | B88: 0.32967 | C88: 0.015629 | D88: 0.314041
A89: 15.25 | B89: 0.296459 | C89: 0.013187 | D89: 0.283272
A90: 15.5 | B90: 0.029304 | C90: 0.021001 | D90: 0.008303
A91: 15.75 | B91: 0.062515 | C91: 0.025885 | D91: 0.03663
A92: 16 | B92: 0.087424 | C92: 0.02735 | D92: 0.060074
A93: 16.25 | B93: 0.083516 | C93: 0.020513 | D93: 0.063003
A94: 16.5 | B94: 0.008303 | C94: 0.013675 | D94: -0.005372
A95: 16.75 | B95: 0.026374 | C95: 0.016117 | D95: 0.010257
A96: 17 | B96: 0.034188 | C96: 0.026374 | D96: =B96-C96 -> 0.007814
A97: 17.25 | B97: 0.023932 | C97: 0.025885 | D97: -0.001953
A98: 17.5 | B98: 0.020513 | C98: 0.029304 | D98: -0.008791
A99: 17.75 | B99: 0.050794 | C99: 0.04884 | D99: 0.001954
A100: 18 | B100: 0.079121 | C100: 0.062515 | D100: 0.016606
A101: 18.25 | B101: 0.077167 | C101: 0.042491 | D101: 0.034676
A102: 18.5 | B102: 0.019536 | C102: 0.018559 | D102: 0.000977
A103: 18.75 | B103: 0.022466 | C103: 0.007814 | D103: 0.014652
A104: 19 | B104: 0.011722 | C104: 0.01514 | D104: -0.003418
A105: 19.25 | B105: 0.007326 | C105: 0.013675 | D105: -0.006349
A106: 19.5 | B106: 0.001954 | C106: 0.01514 | D106: -0.013186
A107: 19.75 | B107: 0.004884 | C107: 0.010256 | D107: -0.005372
A108: 20 | B108: 0.006349 | C108: 0.013187 | D108: -0.006838
A109: 20.25 | B109: 0.019048 | C109: 0.012698 | D109: 0.00635
A110: 20.5 | B110: 0.014164 | C110: 0.026862 | D110: -0.012698
A111: 20.75 | B111: 0.014164 | C111: 0.018071 | D111: -0.003907
A112: 21 | B112: 0.019048 | C112: 0.018559 | D112: 0.000489
A113: 21.25 | B113: 0.016117 | C113: 0.007814 | D113: 0.008303
A114: 21.5 | B114: 0.004396 | C114: 0.003419 | D114: 0.000977
A115: 21.75 | B115: 0.008791 | C115: 0.011233 | D115: -0.002442
A116: 22 | B116: 0.013187 | C116: 0.019536 | D116: -0.006349
A117: 22.25 | B117: 0.000488 | C117: 0.010256 | D117: -0.009768
A118: 22.5 | B118: 0.008303 | C118: 0.006349 | D118: 0.001954
A119: 22.75 | B119: 0.010745 | C119: 0.017094 | D119: -0.006349
A120: 23 | B120: 0.011233 | C120: 0.015629 | D120: -0.004396
A121: 23.25 | B121: 0.00928 | C121: 0.011233 | D121: -0.001953
A122: 23.5 | B122: 0.000977 | C122: 0 | D122: 0.000977
A123: 23.75 | B123: 0.018559 | C123: 0.012698 | D123: 0.005861
A124: 24 | B124: 0.02442 | C124: 0.020024 | D124: 0.004396
A125: 24.25 | B125: 0.023443 | C125: 0.025397 | D125: -0.001954
A126: 24.5 | B126: 0.020513 | C126: 0.015629 | D126: 0.004884
A127: 24.75 | B127: 0.046398 | C127: 0.007814 | D127: 0.038584
A128: 25 | B128: 0.054701 | C128: 0.010745 | D128: =B128-C128 -> 0.043956
A129: 25.25 | B129: 0.035653 | C129: 0.013675 | D129: 0.021978
A130: 25.5 | B130: 0.021978 | C130: 0.021978 | D130: 0
A131: 25.75 | B131: 0.0884 | C131: 0.015629 | D131: 0.072771
A132: 26 | B132: 0.107448 | C132: 0.020513 | D132: 0.086935
A133: 26.25 | B133: 0.100122 | C133: 0.00928 | D133: 0.090842
A134: 26.5 | B134: 0.016606 | C134: 0.013675 | D134: 0.002931
A135: 26.75 | B135: 0.044444 | C135: 0.019048 | D135: 0.025396
A136: 27 | B136: 0.065446 | C136: 0.014652 | D136: 0.050794
A137: 27.25 | B137: 0.050794 | C137: 0.015629 | D137: 0.035165
A138: 27.5 | B138: 0.056654 | C138: 0.03663 | D138: 0.020024
A139: 27.75 | B139: 0.393651 | C139: 0.093285 | D139: 0.300366
A140: 28 | B140: 0.464957 | C140: 0.103053 | D140: 0.361904
A141: 28.25 | B141: 0.40293 | C141: 0.061538 | D141: 0.341392
A142: 28.5 | B142: 0.079121 | C142: 0.01221 | D142: 0.066911
A143: 28.75 | B143: 0.606105 | C143: 0.012698 | D143: 0.593407
A144: 29 | B144: 0.732601 | C144: 0.011233 | D144: 0.721368
A145: 29.25 | B145: 0.610012 | C145: 0.014652 | D145: 0.59536
A146: 29.5 | B146: 0.024908 | C146: 0.008791 | D146: 0.016117
A147: 29.75 | B147: 0.014164 | C147: 0.00928 | D147: 0.004884
A148: 30 | B148: 0.01221 | C148: 0.014164 | D148: -0.001954
A149: 30.25 | B149: 0.025885 | C149: 0.010745 | D149: 0.01514
A150: 30.5 | B150: 0.017094 | C150: 0.011233 | D150: 0.005861
A151: 30.75 | B151: 0.026374 | C151: 0.014652 | D151: 0.011722
A152: 31 | B152: 0.015629 | C152: 0.017094 | D152: -0.001465
A153: 31.25 | B153: 0.018071 | C153: 0.00928 | D153: 0.008791
A154: 31.5 | B154: 0.011233 | C154: 0.011722 | D154: -0.000489
A155: 31.75 | B155: 0.009768 | C155: 0.019536 | D155: -0.009768
A156: 32 | B156: 0.019048 | C156: 0.011722 | D156: 0.007326
A157: 32.25 | B157: 0.010745 | C157: 0.022466 | D157: -0.011721
A158: 32.5 | B158: 0.011233 | C158: 0.01514 | D158: -0.003907
A159: 32.75 | B159: 0.018071 | C159: 0.016606 | D159: 0.001465
A160: 33 | B160: 0.004396 | C160: 0.01221 | D160: =B160-C160 -> -0.007814
A161: 33.25 | B161: 0 | C161: 0.015629 | D161: -0.015629
A162: 33.5 | B162: 0.021978 | C162: 0.014164 | D162: 0.007814
A163: 33.75 | B163: 0.009768 | C163: 0.007814 | D163: 0.001954
A164: 34 | B164: 0.018071 | C164: 0.017094 | D164: 0.000977
A165: 34.25 | B165: 0.010745 | C165: 0.003907 | D165: 0.006838
A166: 34.5 | B166: 0.016606 | C166: 0.021001 | D166: -0.004395
A167: 34.75 | B167: 0.011233 | C167: 0.008791 | D167: 0.002442
A168: 35 | B168: 0.008791 | C168: 0.018071 | D168: -0.00928
A169: 35.25 | B169: 0.007326 | C169: 0.021001 | D169: -0.013675
A170: 35.5 | B170: 0.018071 | C170: 0.021001 | D170: -0.00293
A171: 35.75 | B171: 0.01514 | C171: 0.014652 | D171: 0.000488
A172: 36 | B172: 0.017094 | C172: 0.014164 | D172: 0.00293
A173: 36.25 | B173: 0.017094 | C173: 0.012698 | D173: 0.004396
A174: 36.5 | B174: 0.006349 | C174: 0.016117 | D174: -0.009768
A175: 36.75 | B175: 0.013675 | C175: 0.013187 | D175: 0.000488
A176: 37 | B176: 0.007814 | C176: 0.015629 | D176: -0.007815
A177: 37.25 | B177: 0.018071 | C177: 0.010256 | D177: 0.007815
A178: 37.5 | B178: 0.008791 | C178: 0.004884 | D178: 0.003907
A179: 37.75 | B179: 0.009768 | C179: 0.009768 | D179: 0
A180: 38 | B180: 0.02149 | C180: 0.01221 | D180: 0.00928
A181: 38.25 | B181: 0.017582 | C181: 0.021978 | D181: -0.004396
A182: 38.5 | B182: 0.014164 | C182: 0.013675 | D182: 0.000489
A183: 38.75 | B183: 0.01514 | C183: 0.006838 | D183: 0.008302
A184: 39 | B184: 0.015629 | C184: 0.02149 | D184: -0.005861
A185: 39.25 | B185: 0.008791 | C185: 0.009768 | D185: -0.000977
A186: 39.5 | B186: 0.012698 | C186: 0.020513 | D186: -0.007815
A187: 39.75 | B187: 0.021001 | C187: 0.019048 | D187: 0.001953
A188: 40 | B188: 0.016606 | C188: 0.020513 | D188: -0.003907
A189: 40.25 | B189: 0.013675 | C189: 0.013675 | D189: 0
A190: 40.5 | B190: 0.017582 | C190: 0.011233 | D190: 0.006349
A191: 40.75 | B191: 0.036142 | C191: 0.004884 | D191: 0.031258
A192: 41 | B192: 0.047375 | C192: 0.010745 | D192: =B192-C192 -> 0.03663
A193: 41.25 | B193: 0.044933 | C193: 0.011722 | D193: 0.033211
A194: 41.5 | B194: 0.020513 | C194: 0.00928 | D194: 0.011233
A195: 41.75 | B195: 0.071306 | C195: 0.010256 | D195: 0.06105
A196: 42 | B196: 0.097192 | C196: 0.018559 | D196: 0.078633
A197: 42.25 | B197: 0.081074 | C197: 0.013675 | D197: 0.067399
A198: 42.5 | B198: 0.03956 | C198: 0.014164 | D198: 0.025396
A199: 42.75 | B199: 0.186569 | C199: 0.019536 | D199: 0.167033
A200: 43 | B200: 0.252991 | C200: 0.013675 | D200: 0.239316
A201: 43.25 | B201: 0.200244 | C201: 0.011233 | D201: 0.189011
A202: 43.5 | B202: 0.06398 | C202: 0.009768 | D202: 0.054212
A203: 43.75 | B203: 0.388278 | C203: 0.043956 | D203: 0.344322
A204: 44 | B204: 0.500122 | C204: 0.044933 | D204: 0.455189
A205: 44.25 | B205: 0.386325 | C205: 0.030281 | D205: 0.356044
A206: 44.5 | B206: 0.028327 | C206: 0.017582 | D206: 0.010745
A207: 44.75 | B207: 0.025397 | C207: 0.009768 | D207: 0.015629
A208: 45 | B208: 0.018559 | C208: 0.013675 | D208: 0.004884
A209: 45.25 | B209: 0.022466 | C209: 0.01221 | D209: 0.010256
A210: 45.5 | B210: 0.010745 | C210: 0.007326 | D210: 0.003419
A211: 45.75 | B211: 0.013675 | C211: 0.010256 | D211: 0.003419
A212: 46 | B212: 0.016606 | C212: 0.014652 | D212: 0.001954
A213: 46.25 | B213: 0.023932 | C213: 0.01221 | D213: 0.011722
A214: 46.5 | B214: 0.022955 | C214: 0.011722 | D214: 0.011233
A215: 46.75 | B215: 0.004884 | C215: 0.009768 | D215: -0.004884
A216: 47 | B216: 0.016117 | C216: 0.018071 | D216: -0.001954
A217: 47.25 | B217: 0.016606 | C217: 0.02149 | D217: -0.004884
A218: 47.5 | B218: 0.018071 | C218: 0.015629 | D218: 0.002442
A219: 47.75 | B219: 0.008303 | C219: 0.010745 | D219: -0.002442
A220: 48 | B220: 0.008303 | C220: 0.015629 | D220: -0.007326
A221: 48.25 | B221: 0.007326 | C221: 0.013675 | D221: -0.006349
A222: 48.5 | B222: 0.009768 | C222: 0.01514 | D222: -0.005372
A223: 48.75 | B223: 0.013675 | C223: 0.00293 | D223: 0.010745
A224: 49 | B224: 0.013187 | C224: 0.01221 | D224: =B224-C224 -> 0.000977
A225: 49.25 | B225: 0.009768 | C225: 0.014164 | D225: -0.004396
A226: 49.5 | B226: 0.005372 | C226: 0.020024 | D226: -0.014652
A227: 49.75 | B227: 0.013187 | C227: 0.022955 | D227: -0.009768
A228: 50 | B228: 0.023443 | C228: 0.018071 | D228: 0.005372
A229: 
